Workbook

Sheet Main Sheet
A1: Logical Service Name | B1: Logical Service Description | C1: Domain | D1: Latest Service Design | E1: Available Service Description | F1: Available Service Description (with weight) | G1: Validation EXE | H1: Validation Release | I1: Information Compliance | J1: Service Compliance | K1: TI Binding Compliance | L1: SWIM Compliance Result | M1: Maturity / Compliance Result | N1: Maturity / Compliance Result (with weight) | O1: DP Family (Non-SWIM) | P1: DP Family (SWIM) | Q1: DP Families | R1: DP Families implementing | S1: Servivce included in DP2016 | T1: Services included in DP2016 (weight) | U1: Provider during SESAR1 | V1: Partners validating in SESAR1 | W1: partners implementing sesar1 | X1: Partners implementing in PCP | Y1: NM Only | Z1: Number of providers | AA1: Cardinality (number of providers) | AB1: Cardinality (number of providers) (with weight) | AC1: Cardinality (number of Consumers) | AD1: Cardinality (number of Consumers) (weight) | AE1: Priority for the customers | AF1: Priority for the customers (with weight) | AG1: Total
A2: METAR | B2: The METAR service covers the dissemination of standard ICAO METAR bulletins over SWIM. | C2: MET | D2: ISRM 2.0 | E2: =IF(D2="N/A",0,10) -> 10 | F2: =E2*'config sheet'!$B$14 -> 0.5 | G2: 06.03.01-VP-669 06.05.05-VP-668 (V2) | H2: R5 R4 | I2: Compliant | J2: Compliant | K2: Yellow Profile Compliant | L2: ="Information "&I2&CHAR(10)&"Service "&J2&CHAR(10)&"TI Binding "&K2 -> Information Compliant Service Compliant TI Binding Yellow Profile Compliant | M2: =IF(H2="N/A", Compliance(I2) + Compliance(J2) + Compliance(K2), 1 + Compliance(I2) + Compliance(J2) + Compliance(K2)) -> 10 | N2: =M2*'config sheet'!$B$15 -> 0.5 | P2: #5.4.1 | Q2: #5.4.1 | R2: 1 | S2: 10 | T2: =S2*'config sheet'!$B$16 -> 2 | V2: DSNA, ENAV | W2: 2 | Y2: 0 | Z2: 10 | AA2: =IF(Y2=0,Z2,1) -> 10 | AB2: =AA2*'config sheet'!$B$17 -> 2 | AC2: 10 | AD2: =AC2*'config sheet'!$B$18 -> 2 | AE2: 10 | AF2: =AE2*'config sheet'!$B$19 -> 3 | AG2: =F2+AD2+N2+T2+AB2+AF2 -> 10
A3: METREPORT | B3: The METREPORT service covers the dissemination of standard ICAO METREPORT/SPECIAL bulletins over SWIM. The local routine (METREPORT) and special (SPECIAL) reports are routine observations made at an aerodrome throughout the day. Local routine reports shall be transmitted to local air traffic services units and shall be made available to the operators and to other users at the aerodrome. The scope and usage of METREPORT/SPECIAL is the aerodrome. | C3: MET | D3: ISRM 2.0 | E3: 10 | F3: =E3*'config sheet'!$B$14 -> 0.5 | G3: 06.03.01-VP-669 | H3: R5 | I3: Compliant | J3: Compliant | K3: Yellow Profile Compliant | L3: ="Information "&I3&CHAR(10)&"Service "&J3&CHAR(10)&"TI Binding "&K3 -> Information Compliant Service Compliant TI Binding Yellow Profile Compliant | M3: =IF(H3="N/A", Compliance(I3) + Compliance(J3) + Compliance(K3), 1 + Compliance(I3) + Compliance(J3) + Compliance(K3)) -> 10 | N3: =M3*'config sheet'!$B$15 -> 0.5 | P3: #5.4.1 | Q3: =O3&CHAR(10)&P3 -> #5.4.1 | R3: 1 | S3: 10 | T3: =S3*'config sheet'!$B$16 -> 2 | V3: DSNA, ENAV | W3: 2 | Y3: 0 | Z3: 10 | AA3: 10 | AB3: =AA3*'config sheet'!$B$17 -> 2 | AC3: 10 | AD3: =AC3*'config sheet'!$B$18 -> 2 | AE3: 10 | AF3: =AE3*'config sheet'!$B$19 -> 3 | AG3: 10
A4: TAF | B4: The TAF service covers the dissemination of standard ICAO TAF bulletins over SWIM. The TAF (Terminal Aerodrome Forecast) is a pre-defined ICAO format for reporting weather forecast information with particular reference to aerodromes. TAFs are issued every six hours for major civil airfields and generally apply to a 24 or 30-hour period, and an area within approximately five miles from the centre of an airport runway complex. TAFs are issued every 3 hours for military airfields and some civil airfields and cover a period ranging from 3 hours to 24 hours. | C4: MET | D4: ISRM 2.0 | E4: 10 | F4: =E4*'config sheet'!$B$14 -> 0.5 | G4: 06.03.01-VP-669 06.05.05-VP-668 (V2) | H4: R4 R4 | I4: Compliant | J4: Compliant | K4: Yellow Profile Compliant | L4: Information Compliant Service Compliant TI Binding Yellow Profile Compliant | M4: =IF(H4="N/A", Compliance(I4) + Compliance(J4) + Compliance(K4), 1 + Compliance(I4) + Compliance(J4) + Compliance(K4)) -> 10 | N4: =M4*'config sheet'!$B$15 -> 0.5 | P4: #5.4.1 | Q4: #5.4.1 | R4: 1 | S4: 10 | T4: =S4*'config sheet'!$B$16 -> 2 | W4: 0 | Y4: 0 | Z4: 10 | AA4: 10 | AB4: =AA4*'config sheet'!$B$17 -> 2 | AC4: 10 | AD4: =AC4*'config sheet'!$B$18 -> 2 | AE4: 10 | AF4: =AE4*'config sheet'!$B$19 -> 3 | AG4: 10
A5: AeronauticalInformationFeature | B5: This service provides aeronautical information features to the stakeholders. | C5: AIM | D5: ISRM 2.0 | E5: 10 | F5: =E5*'config sheet'!$B$14 -> 0.5 | G5: 13.02.02-VP-462 | H5: R4 | I5: Compatible | J5: Compliant | K5: Yellow Profile Compliant | L5: ="Information "&I5&CHAR(10)&"Service "&J5&CHAR(10)&"TI Binding "&K5 -> Information Compatible Service Compliant TI Binding Yellow Profile Compliant | M5: =IF(H5="N/A", Compliance(I5) + Compliance(J5) + Compliance(K5), 1 + Compliance(I5) + Compliance(J5) + Compliance(K5)) -> 9 | N5: =M5*'config sheet'!$B$15 -> 0.45 | O5: #1.2.2 | P5: #5.3.1 | Q5: =O5&CHAR(10)&P5 -> #1.2.2 #5.3.1 | R5: 2 | S5: 10 | T5: =S5*'config sheet'!$B$16 -> 2 | V5: FRQ | W5: 1 | X5: 10 | Y5: 0 | Z5: 10 | AA5: 10 | AB5: =AA5*'config sheet'!$B$17 -> 2 | AC5: 10 | AD5: =AC5*'config sheet'!$B$18 -> 2 | AE5: 10 | AF5: =AE5*'config sheet'!$B$19 -> 3 | AG5: 9.95
A6: METHazardEnRouteForecast | B6: The METHazardEnrouteForecast service defines an information service for exchanging Forecasts and Nowcasts of significant weather phenomena. | C6: MET | D6: ISRM 2.0 | E6: 10 | F6: =E6*'config sheet'!$B$14 -> 0.5 | G6: 13.02.03-VP-700 | H6: R5 | I6: Compliant | J6: Compliant | K6: Yellow Profile Compatible | L6: Information Compliant Service Compliant TI Binding Yellow Profile Compatible | M6: =IF(H6="N/A", Compliance(I6) + Compliance(J6) + Compliance(K6), 1 + Compliance(I6) + Compliance(J6) + Compliance(K6)) -> 9 | N6: =M6*'config sheet'!$B$15 -> 0.45 | P6: #5.4.1 | Q6: =O6&CHAR(10)&P6 -> #5.4.1 | R6: 1 | S6: 10 | T6: =S6*'config sheet'!$B$16 -> 2 | U6: METEO FRANCE | V6: ECTL | W6: 2 | Y6: 0 | Z6: 10 | AA6: 10 | AB6: =AA6*'config sheet'!$B$17 -> 2 | AC6: 10 | AD6: =AC6*'config sheet'!$B$18 -> 2 | AE6: 10 | AF6: =AE6*'config sheet'!$B$19 -> 3 | AG6: 9.95
A7: METHazardEnRouteObservation | B7: The METHazardEnrouteObservation service defines an information service for information exchanges for Observations of significant weather phenomena. | C7: MET | D7: ISRM 2.0 | E7: 10 | F7: =E7*'config sheet'!$B$14 -> 0.5 | G7: 13.02.03-VP-700 | H7: R5 | I7: Compliant | J7: Compliant | K7: Yellow Profile Compatible | L7: Information Compliant Service Compliant TI Binding Yellow Profile Compatible | M7: =IF(H7="N/A", Compliance(I7) + Compliance(J7) + Compliance(K7), 1 + Compliance(I7) + Compliance(J7) + Compliance(K7)) -> 9 | N7: =M7*'config sheet'!$B$15 -> 0.45 | P7: #5.4.1 | Q7: =O7&CHAR(10)&P7 -> #5.4.1 | R7: 1 | S7: 10 | T7: =S7*'config sheet'!$B$16 -> 2 | U7: METEO FRANCE | V7: ECTL | W7: 2 | Y7: 0 | Z7: 10 | AA7: 10 | AB7: =AA7*'config sheet'!$B$17 -> 2 | AC7: 10 | AD7: =AC7*'config sheet'!$B$18 -> 2 | AE7: 10 | AF7: =AE7*'config sheet'!$B$19 -> 3 | AG7: 9.95
A8: AerodromeMapInformation | B8: The Service aims to publish Aerodrome Map Features and the Maps themselves as described by EUROCAE in standard AMXM, ED99C and ED119B. | C8: AIM | D8: ISRM 2.0 | E8: 10 | F8: =E8*'config sheet'!$B$14 -> 0.5 | G8: 13.02.02-VP-462 | H8: R4 | I8: Ready | J8: Compliant | K8: Yellow Profile Compliant | L8: Information Ready Service Compliant TI Binding Yellow Profile Compliant | M8: =IF(H8="N/A", Compliance(I8) + Compliance(J8) + Compliance(K8), 1 + Compliance(I8) + Compliance(J8) + Compliance(K8)) -> 8 | N8: =M8*'config sheet'!$B$15 -> 0.4 | O8: #1.2.2 | P8: #5.3.1 | Q8: =O8&CHAR(10)&P8 -> #1.2.2 #5.3.1 | R8: 2 | S8: 10 | T8: =S8*'config sheet'!$B$16 -> 2 | V8: FRQ, LFV | W8: 2 | X8: 10 | Y8: 0 | Z8: 10 | AA8: 10 | AB8: =AA8*'config sheet'!$B$17 -> 2 | AC8: 10 | AD8: =AC8*'config sheet'!$B$18 -> 2 | AE8: 10 | AF8: =AE8*'config sheet'!$B$19 -> 3 | AG8: 9.9
A9: AeronauticalInformationMap | B9: The AeronauticalInformationMap service provides the CDM for the provision of aeronautical information maps. | C9: AIM | D9: ISRM 2.0 | E9: 10 | F9: =E9*'config sheet'!$B$14 -> 0.5 | G9: 13.02.02-VP-462 | H9: R4 | I9: Ready | J9: Compliant | K9: Yellow Profile Compliant | L9: Information Ready Service Compliant TI Binding Yellow Profile Compliant | M9: =IF(H9="N/A", Compliance(I9) + Compliance(J9) + Compliance(K9), 1 + Compliance(I9) + Compliance(J9) + Compliance(K9)) -> 8 | N9: =M9*'config sheet'!$B$15 -> 0.4 | O9: #1.2.2 | P9: #5.3.1 | Q9: =O9&CHAR(10)&P9 -> #1.2.2 #5.3.1 | R9: 2 | S9: 10 | T9: =S9*'config sheet'!$B$16 -> 2 | V9: FRQ | W9: 1 | X9: 10 | Y9: 0 | Z9: 10 | AA9: 10 | AB9: =AA9*'config sheet'!$B$17 -> 2 | AC9: 10 | AD9: =AC9*'config sheet'!$B$18 -> 2 | AE9: 10 | AF9: =AE9*'config sheet'!$B$19 -> 3 | AG9: 9.9
A10: AirportMETAlert | B10: The AirportMETAlert service covers the dissemination of alerts and warnings to airport stakeholders when MET parameters exceed a certain threshold. | C10: MET | D10: ISRM 2.0 | E10: 10 | F10: =E10*'config sheet'!$B$14 -> 0.5 | G10: 06.03.01-VP-669 | I10: Ready | J10: Ready | K10: Yellow Profile Ready | L10: Information Ready Service Ready TI Binding Yellow Profile Ready | M10: =IF(H10="N/A", Compliance(I10) + Compliance(J10) + Compliance(K10), 1 + Compliance(I10) + Compliance(J10) + Compliance(K10)) -> 4 | N10: =M10*'config sheet'!$B$15 -> 0.2 | R10: 1 | S10: 10 | T10: =S10*'config sheet'!$B$16 -> 2 | X10: 10 | Y10: 0 | Z10: 10 | AA10: 10 | AB10: =AA10*'config sheet'!$B$17 -> 2 | AC10: 10 | AD10: =AC10*'config sheet'!$B$18 -> 2 | AE10: 10 | AF10: =AE10*'config sheet'!$B$19 -> 3 | AG10: 9.7
A11: AirportMETForecast | B11: The service covers the dissemination of customized airport meteorological forecasts over SWIM. | C11: MET | D11: ISRM 2.0 | E11: 10 | F11: =E11*'config sheet'!$B$14 -> 0.5 | G11: 06.03.01-VP-669 13.02.03-VP-700 06.05.05-VP-668 (V2) | H11: R5 R5 R4 | I11: Compliant | J11: Compliant | K11: Yellow Profile Compliant | L11: Information Compliant Service Compliant TI Binding Yellow Profile Compliant | M11: =IF(H11="N/A", Compliance(I11) + Compliance(J11) + Compliance(K11), 1 + Compliance(I11) + Compliance(J11) + Compliance(K11)) -> 10 | N11: =M11*'config sheet'!$B$15 -> 0.5 | P11: #5.4.1 | Q11: #5.4.1 | R11: 1 | S11: 10 | T11: =S11*'config sheet'!$B$16 -> 2 | W11: 0 | X11: 10 | Y11: 0 | Z11: 10 | AA11: 10 | AB11: =AA11*'config sheet'!$B$17 -> 2 | AC11: 10 | AD11: =AC11*'config sheet'!$B$18 -> 2 | AE11: 7 | AF11: =AE11*'config sheet'!$B$19 -> 2.1 | AG11: 9.1
A12: AirportMETNowcast | B12: The AirportMETNowcast service provides a Meteorological prediction of the weather at the airport concerned, at a small interval in the future. | C12: MET | D12: ISRM 2.0 | E12: 10 | F12: =E12*'config sheet'!$B$14 -> 0.5 | G12: 06.09.02-VP-678 06.09.02-VP-679 | H12: R4 R5 | I12: Compliant | J12: Compliant | K12: Yellow Profile Ready | L12: Information Compliant Service Compliant TI Binding Yellow Profile Ready | M12: =IF(H12="N/A", Compliance(I12) + Compliance(J12) + Compliance(K12), 1 + Compliance(I12) + Compliance(J12) + Compliance(K12)) -> 8 | N12: =M12*'config sheet'!$B$15 -> 0.4 | P12: #5.4.1 | Q12: #5.4.1 | R12: 1 | S12: 10 | T12: =S12*'config sheet'!$B$16 -> 2 | V12: SELEX FRQ, DFS | W12: 3 | Y12: 0 | Z12: 10 | AA12: 10 | AB12: =AA12*'config sheet'!$B$17 -> 2 | AC12: 10 | AD12: =AC12*'config sheet'!$B$18 -> 2 | AE12: 7 | AF12: =AE12*'config sheet'!$B$19 -> 2.1 | AG12: 9
A13: SharedFlightObject | B13: The “SharedFlightObject” service allows the providers and consumers to share information regarding Flight Objects. | C13: Other | D13: ISRM 2.0 | E13: 10 | F13: =E13*'config sheet'!$B$14 -> 0.5 | G13: 04.03-VP-798 | H13: R5 | I13: N/A | J13: N/A | K13: N/A | L13: To be produced | M13: =IF(H13="N/A", Compliance(I13) + Compliance(J13) + Compliance(K13), 1 + Compliance(I13) + Compliance(J13) + Compliance(K13)) -> 1 | N13: =M13*'config sheet'!$B$15 -> 0.05 | P13: #5.6.1 | Q13: =O13&CHAR(10)&P13 -> #5.6.1 | R13: 1 | S13: 10 | T13: =S13*'config sheet'!$B$16 -> 2 | V13: DSNA, ENAV | W13: 0 | Y13: 0 | Z13: 10 | AA13: 10 | AB13: =AA13*'config sheet'!$B$17 -> 2 | AC13: 5 | AD13: =AC13*'config sheet'!$B$18 -> 1 | AE13: 10 | AF13: =AE13*'config sheet'!$B$19 -> 3 | AG13: 8.55
A14: AirportMETObservation | B14: This service provides a publication/ subscription service to receive meteorological observations of airport runways over SWIM such as the surface contamination, visual range, weather condition, precipitation … | C14: MET | D14: ISRM 2.0 | E14: 10 | F14: =E14*'config sheet'!$B$14 -> 0.5 | G14: 06.03.01-VP-669 13.02.03-VP-700 06.05.05-VP-668 (V2) | H14: R5 R5 R4 | I14: Compliant | J14: Compliant | K14: Yellow Profile Compliant | L14: ="Information "&I14&CHAR(10)&"Service "&J14&CHAR(10)&"TI Binding "&K14 -> Information Compliant Service Compliant TI Binding Yellow Profile Compliant | M14: =IF(H14="N/A", Compliance(I14) + Compliance(J14) + Compliance(K14), 1 + Compliance(I14) + Compliance(J14) + Compliance(K14)) -> 10 | N14: =M14*'config sheet'!$B$15 -> 0.5 | P14: #5.4.1 | Q14: #5.4.1 | R14: 1 | S14: 10 | T14: =S14*'config sheet'!$B$16 -> 2 | V14: DSNA, ENAV ECTL | W14: 3 | Y14: 0 | Z14: 10 | AA14: 10 | AB14: =AA14*'config sheet'!$B$17 -> 2 | AC14: 10 | AD14: =AC14*'config sheet'!$B$18 -> 2 | AE14: 5 | AF14: =AE14*'config sheet'!$B$19 -> 1.5 | AG14: 8.5
A15: AeronauticalInformationNotification | B15: The AeronauticalInformationNotification service provides the CDM for the provision of aeronautical information alerts about new information being available. | C15: AIM | D15: ISRM 2.0 | E15: 10 | F15: =E15*'config sheet'!$B$14 -> 0.5 | G15: 13.02.02-VP-462 | H15: R4 | I15: Ready | J15: Compliant | K15: Yellow Profile Compliant | L15: ="Information "&I15&CHAR(10)&"Service "&J15&CHAR(10)&"TI Binding "&K15 -> Information Ready Service Compliant TI Binding Yellow Profile Compliant | M15: =IF(H15="N/A", Compliance(I15) + Compliance(J15) + Compliance(K15), 1 + Compliance(I15) + Compliance(J15) + Compliance(K15)) -> 8 | N15: =M15*'config sheet'!$B$15 -> 0.4 | O15: #1.2.2 | P15: #5.3.1 | Q15: =O15&CHAR(10)&P15 -> #1.2.2 #5.3.1 | R15: 2 | S15: 10 | T15: =S15*'config sheet'!$B$16 -> 2 | V15: FRQ | W15: 1 | X15: 10 | Y15: 1 | Z15: 10 | AA15: 1 | AB15: =AA15*'config sheet'!$B$17 -> 0.2 | AC15: 10 | AD15: =AC15*'config sheet'!$B$18 -> 2 | AE15: 10 | AF15: =AE15*'config sheet'!$B$19 -> 3 | AG15: 8.1
A16: AirportFlightInformationPublication | B16: The AirportFlightInformationPublication service supports the Airport CDM concept and its implementation by providing the A-CDM partners with Common Situation Awareness about flights at a CDM airport through the publication of flight information to the A-CDM Partners that subscribe to it. Goes in pair with TargetOffBlockTimeSetting | C16: A-CDM | D16: ISRM 2.0 | E16: 10 | F16: =E16*'config sheet'!$B$14 -> 0.5 | G16: 06.03.01-VP-669 06.03.03-VP-709 | H16: R5 R4 | I16: N/A | J16: N/A | K16: N/A | L16: No formal validation | M16: =IF(H16="N/A", Compliance(I16) + Compliance(J16) + Compliance(K16), 1 + Compliance(I16) + Compliance(J16) + Compliance(K16)) -> 1 | N16: =M16*'config sheet'!$B$15 -> 0.05 | O16: #2.1.1 #2.1.2 #2.1.3 #4.2.4 | P16: #5.5.1 #5.6.1 | Q16: #2.1.1 #2.1.2 #2.1.3 #4.2.4 #5.5.1 #5.6.1 | R16: 4 | S16: 10 | T16: =S16*'config sheet'!$B$16 -> 2 | W16: 1 | X16: 10 | Y16: 0 | Z16: 10 | AA16: 10 | AB16: =AA16*'config sheet'!$B$17 -> 2 | AC16: 10 | AD16: =AC16*'config sheet'!$B$18 -> 2 | AE16: 5 | AF16: =AE16*'config sheet'!$B$19 -> 1.5 | AG16: 8.05
A17: METGriddedForecast | B17: METGriddedForecast service provides the Local, sub-regional and regional OUE stakeholders with forecasts of en-route meteorological conditions (upper wind, upper-air temperature, upper-air humidity, geopotential altitude of flight levels, etc.). | C17: MET | D17: ISRM 2.0 | E17: 10 | F17: =E17*'config sheet'!$B$14 -> 0.5 | G17: NONE | H17: N/A | I17: N/A | J17: N/A | K17: N/A | L17: ="Information "&I17&CHAR(10)&"Service "&J17&CHAR(10)&"TI Binding "&K17 -> Information N/A Service N/A TI Binding N/A | M17: =IF(H17="N/A", Compliance(I17) + Compliance(J17) + Compliance(K17), 1 + Compliance(I17) + Compliance(J17) + Compliance(K17)) -> 0 | N17: =M17*'config sheet'!$B$15 -> 0 | P17: #5.4.1 | Q17: =O17&CHAR(10)&P17 -> #5.4.1 | R17: 1 | S17: 10 | T17: =S17*'config sheet'!$B$16 -> 2 | W17: 0 | Y17: 0 | Z17: 10 | AA17: 10 | AB17: =AA17*'config sheet'!$B$17 -> 2 | AC17: 10 | AD17: =AC17*'config sheet'!$B$18 -> 2 | AE17: 5 | AF17: =AE17*'config sheet'!$B$19 -> 1.5 | AG17: 8
A18: ATCFlightObjectControl | B18: The ATCFlightObjectControl service allows consumers to request a number of changes to a Flight Object which is being managed by the service provider. | C18: Other | D18: ISRM 2.0 | E18: 10 | F18: =E18*'config sheet'!$B$14 -> 0.5 | G18: 04.03-VP-798 | H18: R5 | I18: N/A | J18: N/A | K18: N/A | L18: No report produced yet | M18: =IF(H18="N/A", Compliance(I18) + Compliance(J18) + Compliance(K18), 1 + Compliance(I18) + Compliance(J18) + Compliance(K18)) -> 1 | N18: =M18*'config sheet'!$B$15 -> 0.05 | P18: #5.6.1 | Q18: =O18&CHAR(10)&P18 -> #5.6.1 | R18: 1 | S18: 10 | T18: =S18*'config sheet'!$B$16 -> 2 | V18: DSNA, ENAV | W18: 2 | Y18: 0 | Z18: 10 | AA18: 10 | AB18: =AA18*'config sheet'!$B$17 -> 2 | AC18: 2 | AD18: =AC18*'config sheet'!$B$18 -> 0.4 | AE18: 10 | AF18: =AE18*'config sheet'!$B$19 -> 3 | AG18: 7.95
A19: Snowtam | B19: The SNOWTAM service covers the dissemination over SWIM of standard ICAO SNOWTAM, which are shared with a wide range of subscribing ATM users. The SNOWTAM is special series NOTAM notifying the presence or removal of hazardous conditions due to snow, ice, slush or standing water associated with snow, slush and ice on the movement area, by means of a specific format. It is formatted according to ICAO Annex 15 provisioning. | C19: AIM | D19: ISRM 2.0 | E19: 10 | F19: =E19*'config sheet'!$B$14 -> 0.5 | G19: 06.03.01-VP-669 06.05.05-VP-668 (V2) | H19: R5 R4 | I19: Compliant | J19: Compliant | K19: Yellow Profile Compliant | L19: Information Compliant Service Compliant TI Binding Yellow Profile Compliant | M19: =IF(H19="N/A", Compliance(I19) + Compliance(J19) + Compliance(K19), 1 + Compliance(I19) + Compliance(J19) + Compliance(K19)) -> 10 | N19: =M19*'config sheet'!$B$15 -> 0.5 | P19: #5.4.1 | Q19: #5.4.1 | R19: 1 | S19: 10 | T19: =S19*'config sheet'!$B$16 -> 2 | W19: 0 | Y19: 0 | Z19: 10 | AA19: 10 | AB19: =AA19*'config sheet'!$B$17 -> 2 | AC19: 10 | AD19: =AC19*'config sheet'!$B$18 -> 2 | AE19: 2 | AF19: =AE19*'config sheet'!$B$19 -> 0.6 | AG19: 7.6
A20: ExtendedFlightPlanSubmission | B20: The ExtendedFlightPlanSubmission service supports the service consumer to request validation, submission and cancellation of Extended Flight Plans. | C20: Other | D20: ISRM 2.0 | E20: 10 | F20: =E20*'config sheet'!$B$14 -> 0.5 | G20: 07.06.02-VP-713 | H20: R5 | I20: Ready | J20: Compliant | K20: Yellow Profile Compliant | L20: ="Information "&I20&CHAR(10)&"Service "&J20&CHAR(10)&"TI Binding "&K20 -> Information Ready Service Compliant TI Binding Yellow Profile Compliant | M20: =IF(H20="N/A", Compliance(I20) + Compliance(J20) + Compliance(K20), 1 + Compliance(I20) + Compliance(J20) + Compliance(K20)) -> 8 | N20: =M20*'config sheet'!$B$15 -> 0.4 | P20: #5.6.1 | Q20: =O20&CHAR(10)&P20 -> #5.6.1 | R20: 1 | S20: 10 | T20: =S20*'config sheet'!$B$16 -> 2 | U20: NM | V20: ECTL | W20: 1 | Y20: 1 | Z20: 10 | AA20: 1 | AB20: =AA20*'config sheet'!$B$17 -> 0.2 | AC20: 5 | AD20: =AC20*'config sheet'!$B$18 -> 1 | AE20: 10 | AF20: =AE20*'config sheet'!$B$19 -> 3 | AG20: 7.1
A21: FlightPlanDataDistribution | B21: The FlightPlanDataDistribution Service supports the service provider (Network Manager) to distribute flight plans copies and changes. | C21: Other | D21: ISRM 2.0 | E21: 10 | F21: =E21*'config sheet'!$B$14 -> 0.5 | G21: 07.06.02-VP-713 | H21: R5 | I21: Ready | J21: Compliant | K21: Yellow Profile Compliant | L21: ="Information "&I21&CHAR(10)&"Service "&J21&CHAR(10)&"TI Binding "&K21 -> Information Ready Service Compliant TI Binding Yellow Profile Compliant | M21: =IF(H21="N/A", Compliance(I21) + Compliance(J21) + Compliance(K21), 1 + Compliance(I21) + Compliance(J21) + Compliance(K21)) -> 8 | N21: =M21*'config sheet'!$B$15 -> 0.4 | O21: #4.2.3 | P21: #5.6.1 | Q21: =O21&CHAR(10)&P21 -> #4.2.3 #5.6.1 | R21: 2 | S21: 10 | T21: =S21*'config sheet'!$B$16 -> 2 | U21: NM | V21: ECTL | W21: 1 | Y21: 1 | Z21: 10 | AA21: 1 | AB21: =AA21*'config sheet'!$B$17 -> 0.2 | AC21: 5 | AD21: =AC21*'config sheet'!$B$18 -> 1 | AE21: 10 | AF21: =AE21*'config sheet'!$B$19 -> 3 | AG21: 7.1
A22: CalculatedPreDepartureSequenceDelivery | B22: The CalculatedPreDepartureSequenceDelivery service supports the Airport CDM concept and its implementation by providing the Pre-Departure sequencer the capability to deliver the calculated TSAT and TTOT time values. Goes in pair with PreDepatureSequenceSetting | C22: A-CDM | D22: ISRM 2.0 | E22: 10 | F22: =E22*'config sheet'!$B$14 -> 0.5 | G22: 06.03.01-VP-669 06.03.03-VP-709 | H22: R5 R4 | I22: N/A | J22: N/A | K22: N/A | M22: =IF(H22="N/A", Compliance(I22) + Compliance(J22) + Compliance(K22), 1 + Compliance(I22) + Compliance(J22) + Compliance(K22)) -> 1 | N22: =M22*'config sheet'!$B$15 -> 0.05 | O22: #2.1.1 #2.1.2 #2.1.3 | Q22: #2.1.1 #2.1.2 #2.1.3 | R22: 3 | S22: 10 | T22: =S22*'config sheet'!$B$16 -> 2 | V22: DSNA, ENAV | W22: 2 | Y22: 0 | Z22: 10 | AA22: 10 | AB22: =AA22*'config sheet'!$B$17 -> 2 | AC22: 5 | AD22: =AC22*'config sheet'!$B$18 -> 1 | AE22: 5 | AF22: =AE22*'config sheet'!$B$19 -> 1.5 | AG22: 7.05
A23: PreDepartureSequenceSetting | B23: The PreDepartureSequenceSetting service supports the Airport CDM concept and its implementation by providing the relevant authority with the capability to set the TSAT and TTOT time values of a given flight at a CDM airport. Goes in pair with CalculatedPreDepartureSequenceDelivery | C23: A-CDM | D23: ISRM 2.0 | E23: 10 | F23: =E23*'config sheet'!$B$14 -> 0.5 | G23: 06.03.01-VP-669 | H23: R5 | I23: N/A | J23: N/A | K23: N/A | L23: Not used | M23: =IF(H23="N/A", Compliance(I23) + Compliance(J23) + Compliance(K23), 1 + Compliance(I23) + Compliance(J23) + Compliance(K23)) -> 1 | N23: =M23*'config sheet'!$B$15 -> 0.05 | O23: #2.1.1 #2.1.2 #2.1.3 | Q23: =O23&CHAR(10)&P23 -> #2.1.1 #2.1.2 #2.1.3 | R23: 3 | S23: 10 | T23: =S23*'config sheet'!$B$16 -> 2 | V23: DSNA, ENAV | W23: 0 | Y23: 0 | Z23: 10 | AA23: 10 | AB23: =AA23*'config sheet'!$B$17 -> 2 | AC23: 5 | AD23: =AC23*'config sheet'!$B$18 -> 1 | AE23: 5 | AF23: =AE23*'config sheet'!$B$19 -> 1.5 | AG23: 7.05
A24: TargetOffBlockTimeSetting | B24: The TargetOffBlockTimeSetting service supports the Airport CDM concept and its implementation by allowing an A-CDM Partner to set the Target Off-Block Time (TOBT) that indicates the target time for the aircraft to be ready for Off-Block. Goes in pair with AirportFlightInformationPublication | C24: A-CDM | D24: ISRM 2.0 | E24: 10 | F24: =E24*'config sheet'!$B$14 -> 0.5 | G24: 06.03.01-VP-669 06.03.03-VP-709 | H24: R5 R4 | I24: N/A | J24: N/A | K24: N/A | M24: =IF(H24="N/A", Compliance(I24) + Compliance(J24) + Compliance(K24), 1 + Compliance(I24) + Compliance(J24) + Compliance(K24)) -> 1 | N24: =M24*'config sheet'!$B$15 -> 0.05 | R24: 0 | S24: 10 | T24: =S24*'config sheet'!$B$16 -> 2 | V24: DSNA, ENAV | W24: 2 | Y24: 0 | Z24: 10 | AA24: 10 | AB24: =AA24*'config sheet'!$B$17 -> 2 | AC24: 5 | AD24: =AC24*'config sheet'!$B$18 -> 1 | AE24: 5 | AF24: =AE24*'config sheet'!$B$19 -> 1.5 | AG24: 7.05
A25: AMAN Services | B25: Arrival Managers produce Arrival Information for Flights and Arrival Sequences to be used either by ATCOs displaying the need for delay absorption measures, or by IT systems to base further processing on this Information. Arrival Management Information in an extended horizon context needs to be provided to upstream ATSUs and regional airports. The service in addition offers arrival planning information (information related to the airborne trajectory segment of inbound flight). The payloads are strongly influenced by the notion of “AOP-NOP integration”. Specifically, some of the information obtained from “Local ATC / AMAN” is supposedly orchestrated by the AOP for provisioning to the NOP. Therefore, this servise also covers implicitly the requirements of the NOP for “Arrival Planning Information” as far as the primary source of this information is ATC. | C25: AMAN | D25: ISRM 2.0 | E25: 10 | F25: =E25*'config sheet'!$B$14 -> 0.5 | G25: 05.06.07-VP-695 | H25: R4 | I25: Compatible | J25: Ready | K25: Yellow Profile Ready | L25: ="Information "&I25&CHAR(10)&"Service "&J25&CHAR(10)&"TI Binding "&K25 -> Information Compatible Service Ready TI Binding Yellow Profile Ready | M25: =IF(H25="N/A", Compliance(I25) + Compliance(J25) + Compliance(K25), 1 + Compliance(I25) + Compliance(J25) + Compliance(K25)) -> 5 | N25: =M25*'config sheet'!$B$15 -> 0.25 | O25: #1.1.2 | P25: #5.5.1 #5.6.1 | Q25: =O25&CHAR(10)&P25 -> #1.1.2 #5.5.1 #5.6.1 | R25: 3 | S25: 10 | T25: =S25*'config sheet'!$B$16 -> 2 | V25: DSNA, Thales | W25: 2 | Y25: 1 | Z25: 10 | AA25: 1 | AB25: =AA25*'config sheet'!$B$17 -> 0.2 | AC25: 5 | AD25: =AC25*'config sheet'!$B$18 -> 1 | AE25: 10 | AF25: =AE25*'config sheet'!$B$19 -> 3 | AG25: 6.95
A26: AirportMETInducedCapacityReduction | B26: The AirportMETInducedCapacityReduction service supplies the short term maximum airport capacity as constrained by the predicted weather, to consumers (initially at least) at an airport. | C26: Other | D26: ISRM 2.0 | E26: 10 | F26: =E26*'config sheet'!$B$14 -> 0.5 | G26: 13.02.03-VP-700 | H26: R5 | I26: N/A | J26: N/A | K26: N/A | L26: ="Information "&I26&CHAR(10)&"Service "&J26&CHAR(10)&"TI Binding "&K26 -> Information N/A Service N/A TI Binding N/A | M26: =IF(H26="N/A", Compliance(I26) + Compliance(J26) + Compliance(K26), 1 + Compliance(I26) + Compliance(J26) + Compliance(K26)) -> 1 | N26: =M26*'config sheet'!$B$15 -> 0.05 | P26: #5.5.1 | Q26: =O26&CHAR(10)&P26 -> #5.5.1 | R26: 1 | S26: 10 | T26: =S26*'config sheet'!$B$16 -> 2 | V26: ECTL | W26: 1 | Y26: 0 | Z26: 10 | AA26: 10 | AB26: =AA26*'config sheet'!$B$17 -> 2 | AC26: 2 | AD26: =AC26*'config sheet'!$B$18 -> 0.4 | AE26: 5 | AF26: =AE26*'config sheet'!$B$19 -> 1.5 | AG26: 6.45
A27: ReportAircraftTrajectory | B27: The service covers the operations dealing with the request and publication of the Extended Projected Profile (EPP). | C27: Other | D27: ISRM 2.0 | E27: 10 | F27: =E27*'config sheet'!$B$14 -> 0.5 | G27: N/A | H27: N/A | I27: N/A | J27: N/A | K27: N/A | M27: =IF(H27="N/A", Compliance(I27) + Compliance(J27) + Compliance(K27), 1 + Compliance(I27) + Compliance(J27) + Compliance(K27)) -> 0 | N27: =M27*'config sheet'!$B$15 -> 0 | S27: 10 | T27: =S27*'config sheet'!$B$16 -> 2 | W27: NM | Y27: 0 | Z27: 10 | AA27: 10 | AB27: =AA27*'config sheet'!$B$17 -> 2 | AC27: 2 | AD27: =AC27*'config sheet'!$B$18 -> 0.4 | AE27: 5 | AF27: =AE27*'config sheet'!$B$19 -> 1.5 | AG27: 6.4
A28: StamMeasuresServices | B28: The STAMMeasures service supports the Short-Term ATFCM Measures (STAM) concept by providing the concerned stakeholders with capabilities for managing cherry-picked ATFCM measures (Regulation, Reroutings, MCDM Only). | C28: Other | D28: N/A | E28: 3 | F28: =E28*'config sheet'!$B$14 -> 0.15 | G28: 13.02.03-VP-700 | H28: R5 | I28: Compatible | J28: Ready | K28: Yellow Profile Compliant | L28: ="Information "&I28&CHAR(10)&"Service "&J28&CHAR(10)&"TI Binding "&K28 -> Information Compatible Service Ready TI Binding Yellow Profile Compliant | M28: =IF(H28="N/A", Compliance(I28) + Compliance(J28) + Compliance(K28), 1 + Compliance(I28) + Compliance(J28) + Compliance(K28)) -> 7 | N28: =M28*'config sheet'!$B$15 -> 0.35 | O28: #4.1.1 #4.1.2 | P28: #5.5.1 | Q28: =O28&CHAR(10)&P28 -> #4.1.1 #4.1.2 #5.5.1 | R28: 3 | S28: 10 | T28: =S28*'config sheet'!$B$16 -> 2 | U28: NM | V28: ECTL | W28: 1 | Y28: 1 | Z28: 10 | AA28: 1 | AB28: =AA28*'config sheet'!$B$17 -> 0.2 | AC28: 5 | AD28: =AC28*'config sheet'!$B$18 -> 1 | AE28: 5 | AF28: =AE28*'config sheet'!$B$19 -> 1.5 | AG28: 5.2
A29: ARESActivation | B29: The ARESActivation service provides the CDM to coordinate the activation of an ARES between the ASM and the concerned ACCs. | C29: Other | D29: ISRM 2.0 | E29: =IF(D29="N/A",0,10) -> 10 | F29: =E29*'config sheet'!$B$14 -> 0.5 | G29: 07.05.02-VP-710 11.01.05-VP-789 | H29: R5 R5 | I29: N/A | J29: N/A | K29: N/A | L29: To be produced | M29: =IF(H29="N/A", Compliance(I29) + Compliance(J29) + Compliance(K29), 1 + Compliance(I29) + Compliance(J29) + Compliance(K29)) -> 1 | N29: =M29*'config sheet'!$B$15 -> 0.05 | O29: #3.1.1 #3.1.2 #3.1.3 | P29: #5.3.1 | Q29: #3.1.1 #3.1.2 #3.1.3 #5.3.1 | R29: 4 | S29: 10 | T29: =S29*'config sheet'!$B$16 -> 2 | V29: ECTL, DFS AIRBUS | W29: 3 | Y29: 1 | Z29: 10 | AA29: 1 | AB29: =AA29*'config sheet'!$B$17 -> 0.2 | AC29: 2 | AD29: =AC29*'config sheet'!$B$18 -> 0.4 | AE29: 5 | AF29: =AE29*'config sheet'!$B$19 -> 1.5 | AG29: 4.65
A30: ARESDeactivation | B30: The ARESDeActivation service provides the CDM to coordinate the deactivation of an ARES between the ASM and the concerned ACCs. | C30: Other | D30: ISRM 2.0 | E30: =IF(D30="N/A",0,10) -> 10 | F30: =E30*'config sheet'!$B$14 -> 0.5 | G30: 07.05.02-VP-710 11.01.05-VP-789 | H30: R5 R5 | I30: N/A | J30: N/A | K30: N/A | L30: To be produced | M30: =IF(H30="N/A", Compliance(I30) + Compliance(J30) + Compliance(K30), 1 + Compliance(I30) + Compliance(J30) + Compliance(K30)) -> 1 | N30: =M30*'config sheet'!$B$15 -> 0.05 | O30: #3.1.1 #3.1.2 #3.1.3 | P30: #5.3.1 | Q30: #3.1.1 #3.1.2 #3.1.3 #5.3.1 | R30: 4 | S30: 10 | T30: =S30*'config sheet'!$B$16 -> 2 | V30: ECTL, DFS AIRBUS, ECTL | W30: 3 | Y30: 1 | Z30: 10 | AA30: 1 | AB30: =AA30*'config sheet'!$B$17 -> 0.2 | AC30: 2 | AD30: =AC30*'config sheet'!$B$18 -> 0.4 | AE30: 5 | AF30: =AE30*'config sheet'!$B$19 -> 1.5 | AG30: 4.65
A31: ARESPreActivation | B31: The ARESPreActivation service allows the pre-activation of ARES. | C31: Other | D31: ISRM 2.0 | E31: =IF(D31="N/A",0,10) -> 10 | F31: =E31*'config sheet'!$B$14 -> 0.5 | G31: 07.05.02-VP-710 11.01.05-VP-789 | H31: R5 R5 | I31: N/A | J31: N/A | K31: N/A | L31: To be produced | M31: =IF(H31="N/A", Compliance(I31) + Compliance(J31) + Compliance(K31), 1 + Compliance(I31) + Compliance(J31) + Compliance(K31)) -> 1 | N31: =M31*'config sheet'!$B$15 -> 0.05 | O31: #3.1.1 #3.1.2 #3.1.3 | P31: #5.3.1 | Q31: #3.1.1 #3.1.2 #3.1.3 #5.3.1 | R31: 4 | S31: 10 | T31: =S31*'config sheet'!$B$16 -> 2 | V31: ECTL, DFS AIRBUS, ECTL | W31: 3 | Y31: 1 | Z31: 10 | AA31: 1 | AB31: =AA31*'config sheet'!$B$17 -> 0.2 | AC31: 2 | AD31: =AC31*'config sheet'!$B$18 -> 0.4 | AE31: 5 | AF31: =AE31*'config sheet'!$B$19 -> 1.5 | AG31: 4.65
A32: ARESQuery | B32: ARESQuery is a request/reply service that provides information on a specific Area Reservations (ARES) to sustain Advanced Flexible Use of Airspace (AFUA) operations. | C32: Other | D32: ISRM 2.0 | E32: =IF(D32="N/A",0,10) -> 10 | F32: =E32*'config sheet'!$B$14 -> 0.5 | G32: 07.05.02-VP-710 11.01.05-VP-789 | H32: R5 R5 | I32: N/A | J32: N/A | K32: N/A | L32: Not used | M32: =IF(H32="N/A", Compliance(I32) + Compliance(J32) + Compliance(K32), 1 + Compliance(I32) + Compliance(J32) + Compliance(K32)) -> 1 | N32: =M32*'config sheet'!$B$15 -> 0.05 | O32: #3.1.1 #3.1.2 #3.1.3 | P32: #5.3.1 | Q32: #3.1.1 #3.1.2 #3.1.3 #5.3.1 | R32: 4 | S32: 10 | T32: =S32*'config sheet'!$B$16 -> 2 | V32: ECTL, DFS AIRBUS, ECTL | W32: 3 | Y32: 1 | Z32: 10 | AA32: 1 | AB32: =AA32*'config sheet'!$B$17 -> 0.2 | AC32: 2 | AD32: =AC32*'config sheet'!$B$18 -> 0.4 | AE32: 5 | AF32: =AE32*'config sheet'!$B$19 -> 1.5 | AG32: 4.65
A33: ARESRelease | B33: The ARESRelease service notifies the release of an ARES to the concerned ACCs. | C33: Other | D33: ISRM 2.0 | E33: =IF(D33="N/A",0,10) -> 10 | F33: =E33*'config sheet'!$B$14 -> 0.5 | G33: 07.05.02-VP-710 11.01.05-VP-789 | H33: R5 R5 | I33: N/A | J33: N/A | K33: N/A | L33: Not used | M33: =IF(H33="N/A", Compliance(I33) + Compliance(J33) + Compliance(K33), 1 + Compliance(I33) + Compliance(J33) + Compliance(K33)) -> 1 | N33: =M33*'config sheet'!$B$15 -> 0.05 | O33: #3.1.1 #3.1.2 #3.1.3 | P33: #5.3.1 | Q33: #3.1.1 #3.1.2 #3.1.3 #5.3.1 | R33: 4 | S33: 10 | T33: =S33*'config sheet'!$B$16 -> 2 | V33: ECTL, DFS AIRBUS, ECTL | W33: 3 | Y33: 1 | Z33: 10 | AA33: 1 | AB33: =AA33*'config sheet'!$B$17 -> 0.2 | AC33: 2 | AD33: =AC33*'config sheet'!$B$18 -> 0.4 | AE33: 5 | AF33: =AE33*'config sheet'!$B$19 -> 1.5 | AG33: 4.65
A34: M-CDMMeasuresService | B34: The MCDM – Measure Collaborative Decision Making – service manages and promotes the collaboration and coordination on the measures and messages exchanged. . | C34: Other | D34: N/A | E34: 3 | F34: =E34*'config sheet'!$B$14 -> 0.15 | G34: 13.02.03-VP-700 | H34: R5 | I34: Compatible | J34: Ready | K34: Blue Profile Compliant | L34: ="Information "&I34&CHAR(10)&"Service "&J34&CHAR(10)&"TI Binding "&K34 -> Information Compatible Service Ready TI Binding Blue Profile Compliant | M34: =IF(H34="N/A", Compliance(I34) + Compliance(J34) + Compliance(K34), 1 + Compliance(I34) + Compliance(J34) + Compliance(K34)) -> 7 | N34: =M34*'config sheet'!$B$15 -> 0.35 | P34: #5.5.1 | Q34: =O34&CHAR(10)&P34 -> #5.5.1 | R34: 1 | S34: 10 | T34: =S34*'config sheet'!$B$16 -> 2 | U34: NM | V34: ECTL | W34: 1 | Y34: 1 | Z34: 10 | AA34: 1 | AB34: =AA34*'config sheet'!$B$17 -> 0.2 | AC34: 2 | AD34: =AC34*'config sheet'!$B$18 -> 0.4 | AE34: 5 | AF34: =AE34*'config sheet'!$B$19 -> 1.5 | AG34: 4.6
A35: NMCapacityDataService | B35: The NMCapacityData service enables the retrieval and update methods for Airspace capacities. | C35: Other | D35: N/A | E35: 3 | F35: =E35*'config sheet'!$B$14 -> 0.15 | G35: 13.02.03-VP-700 | H35: R5 | I35: Compatible | J35: Ready | K35: Yellow Profile Compliant | L35: ="Information "&I35&CHAR(10)&"Service "&J35&CHAR(10)&"TI Binding "&K35 -> Information Compatible Service Ready TI Binding Yellow Profile Compliant | M35: =IF(H35="N/A", Compliance(I35) + Compliance(J35) + Compliance(K35), 1 + Compliance(I35) + Compliance(J35) + Compliance(K35)) -> 7 | N35: =M35*'config sheet'!$B$15 -> 0.35 | P35: #5.5.1 | Q35: =O35&CHAR(10)&P35 -> #5.5.1 | R35: 1 | S35: 10 | T35: =S35*'config sheet'!$B$16 -> 2 | U35: NM | V35: ECTL | W35: 1 | Y35: 1 | Z35: 10 | AA35: 1 | AB35: =AA35*'config sheet'!$B$17 -> 0.2 | AC35: 2 | AD35: =AC35*'config sheet'!$B$18 -> 0.4 | AE35: 5 | AF35: =AE35*'config sheet'!$B$19 -> 1.5 | AG35: 4.6
A36: NMFlightDataService | B36: The NMFlightData service is used to query and retrieve information on existing flight plans and flights. | C36: Other | D36: N/A | E36: 3 | F36: =E36*'config sheet'!$B$14 -> 0.15 | G36: 13.02.03-VP-700 | H36: R5 | I36: Compatible | J36: Ready | K36: Yellow Profile Compliant | L36: ="Information "&I36&CHAR(10)&"Service "&J36&CHAR(10)&"TI Binding "&K36 -> Information Compatible Service Ready TI Binding Yellow Profile Compliant | M36: =IF(H36="N/A", Compliance(I36) + Compliance(J36) + Compliance(K36), 1 + Compliance(I36) + Compliance(J36) + Compliance(K36)) -> 7 | N36: =M36*'config sheet'!$B$15 -> 0.35 | P36: #5.6.1 | Q36: =O36&CHAR(10)&P36 -> #5.6.1 | R36: 1 | S36: 10 | T36: =S36*'config sheet'!$B$16 -> 2 | U36: NM | V36: ECTL | W36: 1 | Y36: 1 | Z36: 10 | AA36: 1 | AB36: =AA36*'config sheet'!$B$17 -> 0.2 | AC36: 2 | AD36: =AC36*'config sheet'!$B$18 -> 0.4 | AE36: 5 | AF36: =AE36*'config sheet'!$B$19 -> 1.5 | AG36: 4.6
A37: NetworkOperationPlan | B37: The NetworkOperationPlan service supplies the data common to the Network Operations Plan (NOP) and the Airport Operations Plan (AOP) to the airport in order to synchronize the data and maintain a common view of the overall network demand. | C37: Other | D37: ISRM 2.0 | E37: =IF(D37="N/A",0,10) -> 10 | F37: =E37*'config sheet'!$B$14 -> 0.5 | G37: N/A | H37: N/A | I37: N/A | J37: N/A | K37: N/A | M37: =IF(H37="N/A", Compliance(I37) + Compliance(J37) + Compliance(K37), 1 + Compliance(I37) + Compliance(J37) + Compliance(K37)) -> 0 | N37: =M37*'config sheet'!$B$15 -> 0 | S37: 10 | T37: =S37*'config sheet'!$B$16 -> 2 | W37: NM | Y37: 1 | Z37: 10 | AA37: 1 | AB37: =AA37*'config sheet'!$B$17 -> 0.2 | AC37: 2 | AD37: =AC37*'config sheet'!$B$18 -> 0.4 | AE37: 5 | AF37: =AE37*'config sheet'!$B$19 -> 1.5 | AG37: 4.6
A38: RunwayMixSequence | B38: The service identified covers the operations dealing with the subscription and publication of the runway mix sequence. | C38: Other | D38: ISRM 2.0 | E38: =IF(D38="N/A",0,10) -> 10 | F38: =E38*'config sheet'!$B$14 -> 0.5 | G38: N/A | I38: N/A | J38: N/A | K38: N/A | M38: =IF(H38="N/A", Compliance(I38) + Compliance(J38) + Compliance(K38), 1 + Compliance(I38) + Compliance(J38) + Compliance(K38)) -> 1 | N38: =M38*'config sheet'!$B$15 -> 0.05 | S38: =10/4*R38 -> 0 | T38: =S38*'config sheet'!$B$16 -> 0 | W38: NM | Y38: 0 | Z38: 10 | AA38: 10 | AB38: =AA38*'config sheet'!$B$17 -> 2 | AC38: 2 | AD38: =AC38*'config sheet'!$B$18 -> 0.4 | AE38: 5 | AF38: =AE38*'config sheet'!$B$19 -> 1.5 | AG38: 4.45
A39: IntegratedDigitalBriefing | B39: The IntegratedDigitalBriefing service (enabled by the availability of digital aeronautical services and meteorological services) is defined to distribute a Digitally Enhanced Pre-Flight Information Bulletin (ePIB). | C39: Other | D39: ISRM 2.0 | E39: =IF(D39="N/A",0,10) -> 10 | F39: =E39*'config sheet'!$B$14 -> 0.5 | G39: N/A | H39: N/A | I39: N/A | J39: N/A | K39: N/A | M39: =IF(H39="N/A", Compliance(I39) + Compliance(J39) + Compliance(K39), 1 + Compliance(I39) + Compliance(J39) + Compliance(K39)) -> 0 | N39: =M39*'config sheet'!$B$15 -> 0 | S39: =10/4*R39 -> 0 | T39: =S39*'config sheet'!$B$16 -> 0 | Y39: 0 | Z39: 10 | AA39: 10 | AB39: =AA39*'config sheet'!$B$17 -> 2 | AC39: 2 | AD39: =AC39*'config sheet'!$B$18 -> 0.4 | AE39: 5 | AF39: =AE39*'config sheet'!$B$19 -> 1.5 | AG39: 4.4
A40: ReportAircraftETAMinMax | B40: The service identified covers the operations dealing with the request and publication of the ETA Min Max Report. | C40: Other | D40: ISRM 2.0 | E40: =IF(D40="N/A",0,10) -> 10 | F40: =E40*'config sheet'!$B$14 -> 0.5 | G40: N/A | H40: N/A | I40: N/A | J40: N/A | K40: N/A | M40: =IF(H40="N/A", Compliance(I40) + Compliance(J40) + Compliance(K40), 1 + Compliance(I40) + Compliance(J40) + Compliance(K40)) -> 0 | N40: =M40*'config sheet'!$B$15 -> 0 | S40: =10/4*R40 -> 0 | T40: =S40*'config sheet'!$B$16 -> 0 | W40: NM | Y40: 0 | Z40: 10 | AA40: 10 | AB40: =AA40*'config sheet'!$B$17 -> 2 | AC40: 2 | AD40: =AC40*'config sheet'!$B$18 -> 0.4 | AE40: 5 | AF40: =AE40*'config sheet'!$B$19 -> 1.5 | AG40: 4.4
A41: TrafficVolumeInformationService | B41: The TrafficVolumeInformation service is used for monitoring the amount of air traffic over a given object (e.g. an Airspace) called Reference Location, so that one or several Measures can be applied if the load is higher than the available capacity. | C41: Other | D41: N/A | E41: 3 | F41: =E41*'config sheet'!$B$14 -> 0.15 | G41: 13.02.03-VP-700 | H41: R5 | I41: Compatible | J41: Ready | K41: Yellow Profile Compliant | L41: ="Information "&I41&CHAR(10)&"Service "&J41&CHAR(10)&"TI Binding "&K41 -> Information Compatible Service Ready TI Binding Yellow Profile Compliant | M41: =IF(H41="N/A", Compliance(I41) + Compliance(J41) + Compliance(K41), 1 + Compliance(I41) + Compliance(J41) + Compliance(K41)) -> 7 | N41: =M41*'config sheet'!$B$15 -> 0.35 | P41: #5.5.1 | Q41: =O41&CHAR(10)&P41 -> #5.5.1 | R41: 1 | S41: 10 | T41: =S41*'config sheet'!$B$16 -> 2 | U41: NM | V41: ECTL | W41: 1 | Y41: 1 | Z41: 10 | AA41: 1 | AB41: =AA41*'config sheet'!$B$17 -> 0.2 | AC41: 1 | AD41: =AC41*'config sheet'!$B$18 -> 0.2 | AE41: 5 | AF41: =AE41*'config sheet'!$B$19 -> 1.5 | AG41: 4.4
A42: DeparturePlanningInformation | B42: The DeparturePlanningInformation service is a publish/subscribe service to get departure information (Departure and Flight information) at a given aerodrome. | C42: Other | D42: ISRM 2.0 | E42: =IF(D42="N/A",0,10) -> 10 | F42: =E42*'config sheet'!$B$14 -> 0.5 | G42: NONE | H42: N/A | I42: N/A | J42: N/A | K42: N/A | L42: ="Information "&I42&CHAR(10)&"Service "&J42&CHAR(10)&"TI Binding "&K42 -> Information N/A Service N/A TI Binding N/A | M42: =IF(H42="N/A", Compliance(I42) + Compliance(J42) + Compliance(K42), 1 + Compliance(I42) + Compliance(J42) + Compliance(K42)) -> 0 | N42: =M42*'config sheet'!$B$15 -> 0 | O42: #1.1.2 | P42: #5.5.1 #5.6.1 | Q42: =O42&CHAR(10)&P42 -> #1.1.2 #5.5.1 #5.6.1 | R42: 3 | S42: 10 | T42: =S42*'config sheet'!$B$16 -> 2 | W42: 0 | Y42: 1 | Z42: 10 | AA42: 1 | AB42: =AA42*'config sheet'!$B$17 -> 0.2 | AC42: 5 | AD42: =AC42*'config sheet'!$B$18 -> 1 | AE42: 2 | AF42: =AE42*'config sheet'!$B$19 -> 0.6 | AG42: 4.3
A43: HotspotManagementService | B43: The Hotspot Management service supports the Short-Term ATFCM Measures (STAM) concept by providing the concerned stakeholders with capabilities for managing Hotspots in support of network demand and capacity balancing. | C43: Other | D43: N/A | E43: 3 | F43: =E43*'config sheet'!$B$14 -> 0.15 | G43: 13.02.03-VP-700 13.02.03-VP-749 | H43: R5 R5 | I43: Compatible | J43: Ready | K43: Yellow Profile Compliant | L43: Information Compatible Service Ready TI Binding Yellow Profile Compliant | M43: =IF(H43="N/A", Compliance(I43) + Compliance(J43) + Compliance(K43), 1 + Compliance(I43) + Compliance(J43) + Compliance(K43)) -> 7 | N43: =M43*'config sheet'!$B$15 -> 0.35 | P43: #5.5.1 | Q43: #5.5.1 | R43: 1 | S43: 10 | T43: =S43*'config sheet'!$B$16 -> 2 | U43: NM | V43: ECTL ENAIRE | W43: 1 | Y43: 1 | Z43: 10 | AA43: 1 | AB43: =AA43*'config sheet'!$B$17 -> 0.2 | AC43: 5 | AD43: =AC43*'config sheet'!$B$18 -> 1 | AE43: 2 | AF43: =AE43*'config sheet'!$B$19 -> 0.6 | AG43: 4.3
A44: OATFlightDataDistribution | B44: OATFlightDataDistribution service: to enable the NM to: distribute OAT Flight Data to a set of users identified from the trajectory of the flight and other users based on internal rules and Letters of Agreement. | C44: Other | D44: ISRM 2.0 | E44: =IF(D44="N/A",0,10) -> 10 | F44: =E44*'config sheet'!$B$14 -> 0.5 | G44: 11.01.05-VP-789 | H44: R5 | I44: N/A | J44: N/A | K44: N/A | L44: To be produced | M44: =IF(H44="N/A", Compliance(I44) + Compliance(J44) + Compliance(K44), 1 + Compliance(I44) + Compliance(J44) + Compliance(K44)) -> 1 | N44: =M44*'config sheet'!$B$15 -> 0.05 | P44: #5.6.1 | Q44: =O44&CHAR(10)&P44 -> #5.6.1 | R44: 1 | S44: 10 | T44: =S44*'config sheet'!$B$16 -> 2 | V44: AIRBUS, ECTL | W44: 2 | Y44: 1 | Z44: 10 | AA44: 1 | AB44: =AA44*'config sheet'!$B$17 -> 0.2 | AC44: 2 | AD44: =AC44*'config sheet'!$B$18 -> 0.4 | AE44: 2 | AF44: =AE44*'config sheet'!$B$19 -> 0.6 | AG44: 3.75
A45: OATFlightPlanSubmission | B45: OATFlightPlanSubmission service: to enable the Military or State Airspace User to: • request the verification of a new OAT Flight Plan before its submission. • receive the result related to the Validation of a new OAT Flight Plan. • request the submission of a new improved OAT Flight Plan, or of an update to an improved OAT Flight Plan. • receive the result related to the submission of a new improved OAT Flight Plan or of an update to an improved OAT Flight Plan. • request the delay of an improved OAT Flight Plan. • request the cancellation of an acknowledged improved OAT flight plan. • notify the NM of a flight’s suspension or de-suspension. | C45: Other | D45: ISRM 2.0 | E45: =IF(D45="N/A",0,10) -> 10 | F45: =E45*'config sheet'!$B$14 -> 0.5 | G45: 11.01.05-VP-789 | H45: R5 | I45: N/A | J45: N/A | K45: N/A | L45: To be produced | M45: =IF(H45="N/A", Compliance(I45) + Compliance(J45) + Compliance(K45), 1 + Compliance(I45) + Compliance(J45) + Compliance(K45)) -> 1 | N45: =M45*'config sheet'!$B$15 -> 0.05 | P45: #5.6.1 | Q45: =O45&CHAR(10)&P45 -> #5.6.1 | R45: 1 | S45: 10 | T45: =S45*'config sheet'!$B$16 -> 2 | V45: AIRBUS, ECTL | W45: 0 | Y45: 1 | Z45: 10 | AA45: 1 | AB45: =AA45*'config sheet'!$B$17 -> 0.2 | AC45: 2 | AD45: =AC45*'config sheet'!$B$18 -> 0.4 | AE45: 2 | AF45: =AE45*'config sheet'!$B$19 -> 0.6 | AG45: 3.75
A46: ArrivalSeparationIndicator | B46: The identified ArrivalSeparationIndicator service (provided by APP ATC system) supports the TBS System: to allow the Supervisor to select the mode of operation that has to be applied and to inform the Final Approach Controller and the Tower Runway Controller of the mode of operation in use; to provide the Final Approach Controller and the Tower Runway Controller with a separation advice in graphical representation; to provide the Final Approach Controller and the Tower Runway Controller with safety mitigation advices so the associated risk could be managed; to provide the Final Approach Supervisor and the Tower Supervisor with alerts on system and services failures. The operational context for the service derives from the P06.08.01 OSED | C46: Other | D46: ISRM 2.0 | E46: =IF(D46="N/A",0,10) -> 10 | F46: =E46*'config sheet'!$B$14 -> 0.5 | G46: 06.08.01-VP-691 cancelled | H46: R4 | I46: N/A | J46: N/A | K46: N/A | M46: =IF(H46="N/A", Compliance(I46) + Compliance(J46) + Compliance(K46), 1 + Compliance(I46) + Compliance(J46) + Compliance(K46)) -> 1 | N46: =M46*'config sheet'!$B$15 -> 0.05 | Q46: =O46&CHAR(10)&P46 ->  | R46: 0 | S46: =10/4*R46 -> 0 | T46: =S46*'config sheet'!$B$16 -> 0 | W46: 0 | Y46: 0 | Z46: 10 | AA46: 10 | AB46: =AA46*'config sheet'!$B$17 -> 2 | AC46: 2 | AD46: =AC46*'config sheet'!$B$18 -> 0.4 | AE46: 2 | AF46: =AE46*'config sheet'!$B$19 -> 0.6 | AG46: 3.55
A47: Runwaymanagement | B47: This service aims at providing information about the runway status, configuration and capacity (current and planned) at an aerodrome. | C47: Other | D47: ISRM 2.0 | E47: =IF(D47="N/A",0,10) -> 10 | F47: =E47*'config sheet'!$B$14 -> 0.5 | G47: 06.09.02-VP-678 06.09.02-VP-679 06.03.01-VP-669 | H47: R5 | I47: Compatible | J47: Ready | K47: Yellow Profile Compliant | L47: ="Information "&I47&CHAR(10)&"Service "&J47&CHAR(10)&"TI Binding "&K47 -> Information Compatible Service Ready TI Binding Yellow Profile Compliant | M47: =IF(H47="N/A", Compliance(I47) + Compliance(J47) + Compliance(K47), 1 + Compliance(I47) + Compliance(J47) + Compliance(K47)) -> 7 | N47: =M47*'config sheet'!$B$15 -> 0.35 | S47: =10/4*R47 -> 0 | T47: =S47*'config sheet'!$B$16 -> 0 | V47: FREQ, DFS | W47: 2 | Y47: 1 | Z47: 10 | AA47: 1 | AB47: =AA47*'config sheet'!$B$17 -> 0.2 | AC47: 5 | AD47: =AC47*'config sheet'!$B$18 -> 1 | AE47: 5 | AF47: =AE47*'config sheet'!$B$19 -> 1.5 | AG47: 3.55

Sheet config sheet
A2: Validation Release | E2: Service Design Available | G2: Information Compliance | H2: Information Service Compliance | I2: TI Binding Compliance | J2: Domain
A3: R4 | E3: ISRM 2.0 | G3: Compliant | H3: Compliant | I3: Yellow Profile Compliant | J3: MET
A4: R5 | E4: ISRM 1.4 | G4: Compatible | H4: Compatible | I4: Yellow Profile Compatible | J4: AIM
A5: N/A | E5: ISRM 1.3 | G5: Ready | H5: Ready | I5: Yellow Profile Ready | J5: AMAN
E6: ISRM 1.2 | G6: N/A | H6: N/A | I6: Blue Profile Compliant | J6: A-CDM
E7: ISRM 1.1 | I7: Blue Profile Compatible | J7: Other
E8: N/A | I8: Blue Profile Ready
I9: Purple Profile Compliant
I10: Purple Profile Compatible
I11: Purple Profile Ready
I12: N/A
A13: Criterion | B13: Weight | D13: Comments
A14: Available Service Description | B14: 0.05 | C14: 0.05 | D14: When the service is described in the ISRM, score is 10; When service has a SDD (non-ISRM), score is 3 (otherwise 0 - but this has not been used as all the services have an SDD or are part of the ISRM)
A15: Maturity / Compliance Result | B15: 0.05 | C15: 0.05 | D15: Maturity of SESAR exercises. This is a calculation, based on the results from the SESAR validation exercises. When the service is used in a validation exercise, it gets a starting value of 1. Then for the 3 criteria (Information compliance, Service Compliance, TI compliance), points are added as follows: Ready = 1, Compatible = 2, Compliant = 3. The total max value is 10 (1 + Info Compliant + Service Compliant + TI Compliant). In the case that a service is not used in a SESAR validation exercise, the value 0 is given
A16: Services included in the DP2016 | B16: 0.2 | C16: 0.2 | D16: If the service is included in the DP2016, score of 10; otherwise score of 0. When the service is mentioned in the text, it gets a score of 10
A17: Cardinality (number of providers) | B17: 0.2 | C17: 0.2 | D17: The scores are set following the number of stakeholder that would be implementing the service. When the service would have to be implemented by only one stakeholder (i.e.only by NM), the value is set to 1. When the service would have to be implemented by different stakeholders the value is set to 10.
A18: Cardinality (number of Consumers) | B18: 0.2 | C18: 0.2 | D18: The scores are set following the number of stakeholder types who would be using the service. When the service has a many stakeholder types, the value is set to 10. One stakeholder type gets a value of 2 and a few stakeholder types, the value is set to 5
A19: Priority for the customers | B19: 0.3 | C19: 0.3 | D19: The criterion takes into account the services that serve content which is described in a legally binding way, i.e. service in the context of legal obligations. An example is the MET services implementing ICAO Annex 3. The criterion also takes into account the services that have a direct impact on ATM operations. This includes for example Flight Object services or AMAN. If the service has to be implemented to support legal obligations (ICAO), the value is set to 10. In case no legal obligations or no direct impact on operations, the value of 2 is set. Indirect impact on operations, is set to a value of 5.
B21: =SUM(B14:B20) -> 1 | C21: 1 | D21: The total value has to be 1 (100%).

Sheet Sheet3
A1: ='Main Sheet'!A1 -> Logical Service Name | B1: ='Main Sheet'!B1 -> Logical Service Description | C1: ='Main Sheet'!C1 -> Domain
A2: ='Main Sheet'!A2 -> METAR | B2: ='Main Sheet'!B2 -> The METAR service covers the dissemination of standard ICAO METAR bulletins over SWIM. | C2: ='Main Sheet'!C2 -> MET
A3: ='Main Sheet'!A3 -> METREPORT | B3: ='Main Sheet'!B3 -> The METREPORT service covers the dissemination of standard ICAO METREPORT/SPECIAL bulletins over SWIM. The local routine (METREPORT) and special (SPECIAL) reports are routine observations made at an aerodrome throughout the day. Local routine reports shall be transmitted to local air traffic services units and shall be made available to the operators and to other users at the aerodrome. The scope and usage of METREPORT/SPECIAL is the aerodrome. | C3: ='Main Sheet'!C3 -> MET
A4: ='Main Sheet'!A4 -> TAF | B4: ='Main Sheet'!B4 -> The TAF service covers the dissemination of standard ICAO TAF bulletins over SWIM. The TAF (Terminal Aerodrome Forecast) is a pre-defined ICAO format for reporting weather forecast information with particular reference to aerodromes. TAFs are issued every six hours for major civil airfields and generally apply to a 24 or 30-hour period, and an area within approximately five miles from the centre of an airport runway complex. TAFs are issued every 3 hours for military airfields and some civil airfields and cover a period ranging from 3 hours to 24 hours. | C4: ='Main Sheet'!C4 -> MET
A5: ='Main Sheet'!A5 -> AeronauticalInformationFeature | B5: ='Main Sheet'!B5 -> This service provides aeronautical information features to the stakeholders. | C5: ='Main Sheet'!C5 -> AIM
A6: ='Main Sheet'!A6 -> METHazardEnRouteForecast | B6: ='Main Sheet'!B6 -> The METHazardEnrouteForecast service defines an information service for exchanging Forecasts and Nowcasts of significant weather phenomena. | C6: ='Main Sheet'!C6 -> MET
A7: ='Main Sheet'!A7 -> METHazardEnRouteObservation | B7: ='Main Sheet'!B7 -> The METHazardEnrouteObservation service defines an information service for information exchanges for Observations of significant weather phenomena. | C7: ='Main Sheet'!C7 -> MET
A8: ='Main Sheet'!A8 -> AerodromeMapInformation | B8: ='Main Sheet'!B8 -> The Service aims to publish Aerodrome Map Features and the Maps themselves as described by EUROCAE in standard AMXM, ED99C and ED119B. | C8: ='Main Sheet'!C8 -> AIM
A9: ='Main Sheet'!A9 -> AeronauticalInformationMap | B9: ='Main Sheet'!B9 -> The AeronauticalInformationMap service provides the CDM for the provision of aeronautical information maps. | C9: ='Main Sheet'!C9 -> AIM
A10: ='Main Sheet'!A10 -> AirportMETAlert | B10: ='Main Sheet'!B10 -> The AirportMETAlert service covers the dissemination of alerts and warnings to airport stakeholders when MET parameters exceed a certain threshold. | C10: ='Main Sheet'!C10 -> MET
A11: ='Main Sheet'!A11 -> AirportMETForecast | B11: ='Main Sheet'!B11 -> The service covers the dissemination of customized airport meteorological forecasts over SWIM. | C11: ='Main Sheet'!C11 -> MET
A12: ='Main Sheet'!A12 -> AirportMETNowcast | B12: ='Main Sheet'!B12 -> The AirportMETNowcast service provides a Meteorological prediction of the weather at the airport concerned, at a small interval in the future. | C12: ='Main Sheet'!C12 -> MET
A13: ='Main Sheet'!A13 -> SharedFlightObject | B13: ='Main Sheet'!B13 -> The “SharedFlightObject” service allows the providers and consumers to share information regarding Flight Objects. | C13: ='Main Sheet'!C13 -> Other
A14: ='Main Sheet'!A14 -> AirportMETObservation | B14: ='Main Sheet'!B14 -> This service provides a publication/ subscription service to receive meteorological observations of airport runways over SWIM such as the surface contamination, visual range, weather condition, precipitation … | C14: ='Main Sheet'!C14 -> MET
A15: ='Main Sheet'!A15 -> AeronauticalInformationNotification | B15: ='Main Sheet'!B15 -> The AeronauticalInformationNotification service provides the CDM for the provision of aeronautical information alerts about new information being available. | C15: ='Main Sheet'!C15 -> AIM
A16: ='Main Sheet'!A16 -> AirportFlightInformationPublication | B16: ='Main Sheet'!B16 -> The AirportFlightInformationPublication service supports the Airport CDM concept and its implementation by providing the A-CDM partners with Common Situation Awareness about flights at a CDM airport through the publication of flight information to the A-CDM Partners that subscribe to it. Goes in pair with TargetOffBlockTimeSetting | C16: ='Main Sheet'!C16 -> A-CDM
A17: ='Main Sheet'!A17 -> METGriddedForecast | B17: ='Main Sheet'!B17 -> METGriddedForecast service provides the Local, sub-regional and regional OUE stakeholders with forecasts of en-route meteorological conditions (upper wind, upper-air temperature, upper-air humidity, geopotential altitude of flight levels, etc.). | C17: ='Main Sheet'!C17 -> MET
A18: ='Main Sheet'!A18 -> ATCFlightObjectControl | B18: ='Main Sheet'!B18 -> The ATCFlightObjectControl service allows consumers to request a number of changes to a Flight Object which is being managed by the service provider. | C18: ='Main Sheet'!C18 -> Other
A19: ='Main Sheet'!A19 -> Snowtam | B19: ='Main Sheet'!B19 -> The SNOWTAM service covers the dissemination over SWIM of standard ICAO SNOWTAM, which are shared with a wide range of subscribing ATM users. The SNOWTAM is special series NOTAM notifying the presence or removal of hazardous conditions due to snow, ice, slush or standing water associated with snow, slush and ice on the movement area, by means of a specific format. It is formatted according to ICAO Annex 15 provisioning. | C19: ='Main Sheet'!C19 -> AIM
A20: ='Main Sheet'!A20 -> ExtendedFlightPlanSubmission | B20: ='Main Sheet'!B20 -> The ExtendedFlightPlanSubmission service supports the service consumer to request validation, submission and cancellation of Extended Flight Plans. | C20: ='Main Sheet'!C20 -> Other
A21: ='Main Sheet'!A21 -> FlightPlanDataDistribution | B21: ='Main Sheet'!B21 -> The FlightPlanDataDistribution Service supports the service provider (Network Manager) to distribute flight plans copies and changes. | C21: ='Main Sheet'!C21 -> Other
A22: ='Main Sheet'!A22 -> CalculatedPreDepartureSequenceDelivery | B22: ='Main Sheet'!B22 -> The CalculatedPreDepartureSequenceDelivery service supports the Airport CDM concept and its implementation by providing the Pre-Departure sequencer the capability to deliver the calculated TSAT and TTOT time values. Goes in pair with PreDepatureSequenceSetting | C22: ='Main Sheet'!C22 -> A-CDM
A23: ='Main Sheet'!A23 -> PreDepartureSequenceSetting | B23: ='Main Sheet'!B23 -> The PreDepartureSequenceSetting service supports the Airport CDM concept and its implementation by providing the relevant authority with the capability to set the TSAT and TTOT time values of a given flight at a CDM airport. Goes in pair with CalculatedPreDepartureSequenceDelivery | C23: ='Main Sheet'!C23 -> A-CDM
A24: ='Main Sheet'!A24 -> TargetOffBlockTimeSetting | B24: ='Main Sheet'!B24 -> The TargetOffBlockTimeSetting service supports the Airport CDM concept and its implementation by allowing an A-CDM Partner to set the Target Off-Block Time (TOBT) that indicates the target time for the aircraft to be ready for Off-Block. Goes in pair with AirportFlightInformationPublication | C24: ='Main Sheet'!C24 -> A-CDM
A25: ='Main Sheet'!A25 -> AMAN Services | B25: ='Main Sheet'!B25 -> Arrival Managers produce Arrival Information for Flights and Arrival Sequences to be used either by ATCOs displaying the need for delay absorption measures, or by IT systems to base further processing on this Information. Arrival Management Information in an extended horizon context needs to be provided to upstream ATSUs and regional airports. The service in addition offers arrival planning information (information related to the airborne trajectory segment of inbound flight). The payloads are strongly influenced by the notion of “AOP-NOP integration”. Specifically, some of the information obtained from “Local ATC / AMAN” is supposedly orchestrated by the AOP for provisioning to the NOP. Therefore, this servise also covers implicitly the requirements of the NOP for “Arrival Planning Information” as far as the primary source of this information is ATC. | C25: ='Main Sheet'!C25 -> AMAN
A26: ='Main Sheet'!A26 -> AirportMETInducedCapacityReduction | B26: ='Main Sheet'!B26 -> The AirportMETInducedCapacityReduction service supplies the short term maximum airport capacity as constrained by the predicted weather, to consumers (initially at least) at an airport. | C26: ='Main Sheet'!C26 -> Other
A27: ='Main Sheet'!A27 -> ReportAircraftTrajectory | B27: ='Main Sheet'!B27 -> The service covers the operations dealing with the request and publication of the Extended Projected Profile (EPP). | C27: ='Main Sheet'!C27 -> Other
A28: ='Main Sheet'!A28 -> StamMeasuresServices | B28: ='Main Sheet'!B28 -> The STAMMeasures service supports the Short-Term ATFCM Measures (STAM) concept by providing the concerned stakeholders with capabilities for managing cherry-picked ATFCM measures (Regulation, Reroutings, MCDM Only). | C28: ='Main Sheet'!C28 -> Other
A29: ='Main Sheet'!A29 -> ARESActivation | B29: ='Main Sheet'!B29 -> The ARESActivation service provides the CDM to coordinate the activation of an ARES between the ASM and the concerned ACCs. | C29: ='Main Sheet'!C29 -> Other
A30: ='Main Sheet'!A30 -> ARESDeactivation | B30: ='Main Sheet'!B30 -> The ARESDeActivation service provides the CDM to coordinate the deactivation of an ARES between the ASM and the concerned ACCs. | C30: ='Main Sheet'!C30 -> Other
A31: ='Main Sheet'!A31 -> ARESPreActivation | B31: ='Main Sheet'!B31 -> The ARESPreActivation service allows the pre-activation of ARES. | C31: ='Main Sheet'!C31 -> Other
A32: ='Main Sheet'!A32 -> ARESQuery | B32: ='Main Sheet'!B32 -> ARESQuery is a request/reply service that provides information on a specific Area Reservations (ARES) to sustain Advanced Flexible Use of Airspace (AFUA) operations. | C32: ='Main Sheet'!C32 -> Other
A33: ='Main Sheet'!A33 -> ARESRelease | B33: ='Main Sheet'!B33 -> The ARESRelease service notifies the release of an ARES to the concerned ACCs. | C33: ='Main Sheet'!C33 -> Other
A34: ='Main Sheet'!A34 -> M-CDMMeasuresService | B34: ='Main Sheet'!B34 -> The MCDM – Measure Collaborative Decision Making – service manages and promotes the collaboration and coordination on the measures and messages exchanged. . | C34: ='Main Sheet'!C34 -> Other
A35: ='Main Sheet'!A35 -> NMCapacityDataService | B35: ='Main Sheet'!B35 -> The NMCapacityData service enables the retrieval and update methods for Airspace capacities. | C35: ='Main Sheet'!C35 -> Other
A36: ='Main Sheet'!A36 -> NMFlightDataService | B36: ='Main Sheet'!B36 -> The NMFlightData service is used to query and retrieve information on existing flight plans and flights. | C36: ='Main Sheet'!C36 -> Other
A37: ='Main Sheet'!A37 -> NetworkOperationPlan | B37: ='Main Sheet'!B37 -> The NetworkOperationPlan service supplies the data common to the Network Operations Plan (NOP) and the Airport Operations Plan (AOP) to the airport in order to synchronize the data and maintain a common view of the overall network demand. | C37: ='Main Sheet'!C37 -> Other
A38: ='Main Sheet'!A38 -> RunwayMixSequence | B38: ='Main Sheet'!B38 -> The service identified covers the operations dealing with the subscription and publication of the runway mix sequence. | C38: ='Main Sheet'!C38 -> Other
A39: ='Main Sheet'!A39 -> IntegratedDigitalBriefing | B39: ='Main Sheet'!B39 -> The IntegratedDigitalBriefing service (enabled by the availability of digital aeronautical services and meteorological services) is defined to distribute a Digitally Enhanced Pre-Flight Information Bulletin (ePIB). | C39: ='Main Sheet'!C39 -> Other
A40: ='Main Sheet'!A40 -> ReportAircraftETAMinMax | B40: ='Main Sheet'!B40 -> The service identified covers the operations dealing with the request and publication of the ETA Min Max Report. | C40: ='Main Sheet'!C40 -> Other
A41: ='Main Sheet'!#REF! ->  | B41: ='Main Sheet'!#REF! ->  | C41: ='Main Sheet'!#REF! -> 
A42: ='Main Sheet'!A41 -> TrafficVolumeInformationService | B42: ='Main Sheet'!B41 -> The TrafficVolumeInformation service is used for monitoring the amount of air traffic over a given object (e.g. an Airspace) called Reference Location, so that one or several Measures can be applied if the load is higher than the available capacity. | C42: ='Main Sheet'!C41 -> Other
A43: ='Main Sheet'!A42 -> DeparturePlanningInformation | B43: ='Main Sheet'!B42 -> The DeparturePlanningInformation service is a publish/subscribe service to get departure information (Departure and Flight information) at a given aerodrome. | C43: ='Main Sheet'!C42 -> Other
A44: ='Main Sheet'!A43 -> HotspotManagementService | B44: ='Main Sheet'!B43 -> The Hotspot Management service supports the Short-Term ATFCM Measures (STAM) concept by providing the concerned stakeholders with capabilities for managing Hotspots in support of network demand and capacity balancing. | C44: ='Main Sheet'!C43 -> Other
A45: ='Main Sheet'!A44 -> OATFlightDataDistribution | B45: ='Main Sheet'!B44 -> OATFlightDataDistribution service: to enable the NM to: distribute OAT Flight Data to a set of users identified from the trajectory of the flight and other users based on internal rules and Letters of Agreement. | C45: ='Main Sheet'!C44 -> Other
A46: ='Main Sheet'!A45 -> OATFlightPlanSubmission | B46: ='Main Sheet'!B45 -> OATFlightPlanSubmission service: to enable the Military or State Airspace User to: • request the verification of a new OAT Flight Plan before its submission. • receive the result related to the Validation of a new OAT Flight Plan. • request the submission of a new improved OAT Flight Plan, or of an update to an improved OAT Flight Plan. • receive the result related to the submission of a new improved OAT Flight Plan or of an update to an improved OAT Flight Plan. • request the delay of an improved OAT Flight Plan. • request the cancellation of an acknowledged improved OAT flight plan. • notify the NM of a flight’s suspension or de-suspension. | C46: ='Main Sheet'!C45 -> Other
A47: ='Main Sheet'!A46 -> ArrivalSeparationIndicator | B47: ='Main Sheet'!B46 -> The identified ArrivalSeparationIndicator service (provided by APP ATC system) supports the TBS System: to allow the Supervisor to select the mode of operation that has to be applied and to inform the Final Approach Controller and the Tower Runway Controller of the mode of operation in use; to provide the Final Approach Controller and the Tower Runway Controller with a separation advice in graphical representation; to provide the Final Approach Controller and the Tower Runway Controller with safety mitigation advices so the associated risk could be managed; to provide the Final Approach Supervisor and the Tower Supervisor with alerts on system and services failures. The operational context for the service derives from the P06.08.01 OSED | C47: ='Main Sheet'!C46 -> Other
A48: ='Main Sheet'!A47 -> Runwaymanagement | B48: ='Main Sheet'!B47 -> This service aims at providing information about the runway status, configuration and capacity (current and planned) at an aerodrome. | C48: ='Main Sheet'!C47 -> Other
A49: ='Main Sheet'!A48 -> 0 | B49: ='Main Sheet'!B48 -> 0 | C49: ='Main Sheet'!C48 -> 0
A50: ='Main Sheet'!A49 -> 0 | B50: ='Main Sheet'!B49 -> 0 | C50: ='Main Sheet'!C49 -> 0
A51: ='Main Sheet'!A50 -> 0 | B51: ='Main Sheet'!B50 -> 0 | C51: ='Main Sheet'!C50 -> 0
A52: ='Main Sheet'!A51 -> 0 | B52: ='Main Sheet'!B51 -> 0 | C52: ='Main Sheet'!C51 -> 0
A53: ='Main Sheet'!A52 -> 0 | B53: ='Main Sheet'!B52 -> 0 | C53: ='Main Sheet'!C52 -> 0
A54: ='Main Sheet'!A53 -> 0 | B54: ='Main Sheet'!B53 -> 0 | C54: ='Main Sheet'!C53 -> 0
A55: ='Main Sheet'!A54 -> 0 | B55: ='Main Sheet'!B54 -> 0 | C55: ='Main Sheet'!C54 -> 0
A56: ='Main Sheet'!A55 -> 0 | B56: ='Main Sheet'!B55 -> 0 | C56: ='Main Sheet'!C55 -> 0
A57: ='Main Sheet'!A56 -> 0 | B57: ='Main Sheet'!B56 -> 0 | C57: ='Main Sheet'!C56 -> 0
A58: ='Main Sheet'!A57 -> 0 | B58: ='Main Sheet'!B57 -> 0 | C58: ='Main Sheet'!C57 -> 0
A59: ='Main Sheet'!A58 -> 0 | B59: ='Main Sheet'!B58 -> 0 | C59: ='Main Sheet'!C58 -> 0
A60: ='Main Sheet'!A59 -> 0 | B60: ='Main Sheet'!B59 -> 0 | C60: ='Main Sheet'!C59 -> 0
A61: ='Main Sheet'!A60 -> 0 | B61: ='Main Sheet'!B60 -> 0 | C61: ='Main Sheet'!C60 -> 0
A62: ='Main Sheet'!A61 -> 0 | B62: ='Main Sheet'!B61 -> 0 | C62: ='Main Sheet'!C61 -> 0
A63: ='Main Sheet'!A62 -> 0 | B63: ='Main Sheet'!B62 -> 0 | C63: ='Main Sheet'!C62 -> 0
A64: ='Main Sheet'!A63 -> 0 | B64: ='Main Sheet'!B63 -> 0 | C64: ='Main Sheet'!C63 -> 0
A65: ='Main Sheet'!A64 -> 0 | B65: ='Main Sheet'!B64 -> 0 | C65: ='Main Sheet'!C64 -> 0
A66: ='Main Sheet'!A65 -> 0 | B66: ='Main Sheet'!B65 -> 0 | C66: ='Main Sheet'!C65 -> 0
A67: ='Main Sheet'!A66 -> 0 | B67: ='Main Sheet'!B66 -> 0 | C67: ='Main Sheet'!C66 -> 0
A68: ='Main Sheet'!A67 -> 0 | B68: ='Main Sheet'!B67 -> 0 | C68: ='Main Sheet'!C67 -> 0
A69: ='Main Sheet'!A68 -> 0 | B69: ='Main Sheet'!B68 -> 0 | C69: ='Main Sheet'!C68 -> 0
A70: ='Main Sheet'!A69 -> 0 | B70: ='Main Sheet'!B69 -> 0 | C70: ='Main Sheet'!C69 -> 0
A71: ='Main Sheet'!A70 -> 0 | B71: ='Main Sheet'!B70 -> 0 | C71: ='Main Sheet'!C70 -> 0
A72: ='Main Sheet'!A71 -> 0 | B72: ='Main Sheet'!B71 -> 0 | C72: ='Main Sheet'!C71 -> 0
A73: ='Main Sheet'!A72 -> 0 | B73: ='Main Sheet'!B72 -> 0 | C73: ='Main Sheet'!C72 -> 0
A74: ='Main Sheet'!A73 -> 0 | B74: ='Main Sheet'!B73 -> 0 | C74: ='Main Sheet'!C73 -> 0
A75: ='Main Sheet'!A74 -> 0 | B75: ='Main Sheet'!B74 -> 0 | C75: ='Main Sheet'!C74 -> 0
A76: ='Main Sheet'!A75 -> 0 | B76: ='Main Sheet'!B75 -> 0 | C76: ='Main Sheet'!C75 -> 0
A77: ='Main Sheet'!A76 -> 0 | B77: ='Main Sheet'!B76 -> 0 | C77: ='Main Sheet'!C76 -> 0
A78: ='Main Sheet'!A77 -> 0 | B78: ='Main Sheet'!B77 -> 0 | C78: ='Main Sheet'!C77 -> 0
A79: ='Main Sheet'!A78 -> 0 | B79: ='Main Sheet'!B78 -> 0 | C79: ='Main Sheet'!C78 -> 0
A80: ='Main Sheet'!A79 -> 0 | B80: ='Main Sheet'!B79 -> 0 | C80: ='Main Sheet'!C79 -> 0
A81: ='Main Sheet'!A80 -> 0 | B81: ='Main Sheet'!B80 -> 0 | C81: ='Main Sheet'!C80 -> 0
A82: ='Main Sheet'!A81 -> 0 | B82: ='Main Sheet'!B81 -> 0 | C82: ='Main Sheet'!C81 -> 0
A83: ='Main Sheet'!A82 -> 0 | B83: ='Main Sheet'!B82 -> 0 | C83: ='Main Sheet'!C82 -> 0
A84: ='Main Sheet'!A83 -> 0 | B84: ='Main Sheet'!B83 -> 0 | C84: ='Main Sheet'!C83 -> 0
A85: ='Main Sheet'!A84 -> 0 | B85: ='Main Sheet'!B84 -> 0 | C85: ='Main Sheet'!C84 -> 0
A86: ='Main Sheet'!A85 -> 0 | B86: ='Main Sheet'!B85 -> 0 | C86: ='Main Sheet'!C85 -> 0
A87: ='Main Sheet'!A86 -> 0 | B87: ='Main Sheet'!B86 -> 0 | C87: ='Main Sheet'!C86 -> 0
A88: ='Main Sheet'!A87 -> 0 | B88: ='Main Sheet'!B87 -> 0 | C88: ='Main Sheet'!C87 -> 0
A89: ='Main Sheet'!A88 -> 0 | B89: ='Main Sheet'!B88 -> 0 | C89: ='Main Sheet'!C88 -> 0
A90: ='Main Sheet'!A89 -> 0 | B90: ='Main Sheet'!B89 -> 0 | C90: ='Main Sheet'!C89 -> 0
A91: ='Main Sheet'!A90 -> 0 | B91: ='Main Sheet'!B90 -> 0 | C91: ='Main Sheet'!C90 -> 0
A92: ='Main Sheet'!A91 -> 0 | B92: ='Main Sheet'!B91 -> 0 | C92: ='Main Sheet'!C91 -> 0
A93: ='Main Sheet'!A92 -> 0 | B93: ='Main Sheet'!B92 -> 0 | C93: ='Main Sheet'!C92 -> 0
A94: ='Main Sheet'!A93 -> 0 | B94: ='Main Sheet'!B93 -> 0 | C94: ='Main Sheet'!C93 -> 0
A95: ='Main Sheet'!A94 -> 0 | B95: ='Main Sheet'!B94 -> 0 | C95: ='Main Sheet'!C94 -> 0
A96: ='Main Sheet'!A95 -> 0 | B96: ='Main Sheet'!B95 -> 0 | C96: ='Main Sheet'!C95 -> 0
A97: ='Main Sheet'!A96 -> 0 | B97: ='Main Sheet'!B96 -> 0 | C97: ='Main Sheet'!C96 -> 0
A98: ='Main Sheet'!A97 -> 0 | B98: ='Main Sheet'!B97 -> 0 | C98: ='Main Sheet'!C97 -> 0
A99: ='Main Sheet'!A98 -> 0 | B99: ='Main Sheet'!B98 -> 0 | C99: ='Main Sheet'!C98 -> 0
A100: ='Main Sheet'!A99 -> 0 | B100: ='Main Sheet'!B99 -> 0 | C100: ='Main Sheet'!C99 -> 0
A101: ='Main Sheet'!A100 -> 0 | B101: ='Main Sheet'!B100 -> 0 | C101: ='Main Sheet'!C100 -> 0
A102: ='Main Sheet'!A101 -> 0 | B102: ='Main Sheet'!B101 -> 0 | C102: ='Main Sheet'!C101 -> 0
A103: ='Main Sheet'!A102 -> 0 | B103: ='Main Sheet'!B102 -> 0 | C103: ='Main Sheet'!C102 -> 0
A104: ='Main Sheet'!A103 -> 0 | B104: ='Main Sheet'!B103 -> 0 | C104: ='Main Sheet'!C103 -> 0
A105: ='Main Sheet'!A104 -> 0 | B105: ='Main Sheet'!B104 -> 0 | C105: ='Main Sheet'!C104 -> 0
A106: ='Main Sheet'!A105 -> 0 | B106: ='Main Sheet'!B105 -> 0 | C106: ='Main Sheet'!C105 -> 0
A107: ='Main Sheet'!A106 -> 0 | B107: ='Main Sheet'!B106 -> 0 | C107: ='Main Sheet'!C106 -> 0
A108: ='Main Sheet'!A107 -> 0 | B108: ='Main Sheet'!B107 -> 0 | C108: ='Main Sheet'!C107 -> 0
A109: ='Main Sheet'!A108 -> 0 | B109: ='Main Sheet'!B108 -> 0 | C109: ='Main Sheet'!C108 -> 0
A110: ='Main Sheet'!A109 -> 0 | B110: ='Main Sheet'!B109 -> 0 | C110: ='Main Sheet'!C109 -> 0
A111: ='Main Sheet'!A110 -> 0 | B111: ='Main Sheet'!B110 -> 0 | C111: ='Main Sheet'!C110 -> 0
A112: ='Main Sheet'!A111 -> 0 | B112: ='Main Sheet'!B111 -> 0 | C112: ='Main Sheet'!C111 -> 0
A113: ='Main Sheet'!A112 -> 0 | B113: ='Main Sheet'!B112 -> 0 | C113: ='Main Sheet'!C112 -> 0
A114: ='Main Sheet'!A113 -> 0 | B114: ='Main Sheet'!B113 -> 0 | C114: ='Main Sheet'!C113 -> 0
A115: ='Main Sheet'!A114 -> 0 | B115: ='Main Sheet'!B114 -> 0 | C115: ='Main Sheet'!C114 -> 0
A116: ='Main Sheet'!A115 -> 0 | B116: ='Main Sheet'!B115 -> 0 | C116: ='Main Sheet'!C115 -> 0
A117: ='Main Sheet'!A116 -> 0 | B117: ='Main Sheet'!B116 -> 0 | C117: ='Main Sheet'!C116 -> 0
A118: ='Main Sheet'!A117 -> 0 | B118: ='Main Sheet'!B117 -> 0 | C118: ='Main Sheet'!C117 -> 0
A119: ='Main Sheet'!A118 -> 0 | B119: ='Main Sheet'!B118 -> 0 | C119: ='Main Sheet'!C118 -> 0
A120: ='Main Sheet'!A119 -> 0 | B120: ='Main Sheet'!B119 -> 0 | C120: ='Main Sheet'!C119 -> 0
A121: ='Main Sheet'!A120 -> 0 | B121: ='Main Sheet'!B120 -> 0 | C121: ='Main Sheet'!C120 -> 0
A122: ='Main Sheet'!A121 -> 0 | B122: ='Main Sheet'!B121 -> 0 | C122: ='Main Sheet'!C121 -> 0
A123: ='Main Sheet'!A122 -> 0 | B123: ='Main Sheet'!B122 -> 0 | C123: ='Main Sheet'!C122 -> 0
A124: ='Main Sheet'!A123 -> 0 | B124: ='Main Sheet'!B123 -> 0 | C124: ='Main Sheet'!C123 -> 0
A125: ='Main Sheet'!A124 -> 0 | B125: ='Main Sheet'!B124 -> 0 | C125: ='Main Sheet'!C124 -> 0
A126: ='Main Sheet'!A125 -> 0 | B126: ='Main Sheet'!B125 -> 0 | C126: ='Main Sheet'!C125 -> 0
A127: ='Main Sheet'!A126 -> 0 | B127: ='Main Sheet'!B126 -> 0 | C127: ='Main Sheet'!C126 -> 0
A128: ='Main Sheet'!A127 -> 0 | B128: ='Main Sheet'!B127 -> 0 | C128: ='Main Sheet'!C127 -> 0
A129: ='Main Sheet'!A128 -> 0 | B129: ='Main Sheet'!B128 -> 0 | C129: ='Main Sheet'!C128 -> 0
A130: ='Main Sheet'!A129 -> 0 | B130: ='Main Sheet'!B129 -> 0 | C130: ='Main Sheet'!C129 -> 0
A131: ='Main Sheet'!A130 -> 0 | B131: ='Main Sheet'!B130 -> 0 | C131: ='Main Sheet'!C130 -> 0
A132: ='Main Sheet'!A131 -> 0 | B132: ='Main Sheet'!B131 -> 0 | C132: ='Main Sheet'!C131 -> 0
A133: ='Main Sheet'!A132 -> 0 | B133: ='Main Sheet'!B132 -> 0 | C133: ='Main Sheet'!C132 -> 0
A134: ='Main Sheet'!A133 -> 0 | B134: ='Main Sheet'!B133 -> 0 | C134: ='Main Sheet'!C133 -> 0
A135: ='Main Sheet'!A134 -> 0 | B135: ='Main Sheet'!B134 -> 0 | C135: ='Main Sheet'!C134 -> 0
A136: ='Main Sheet'!A135 -> 0 | B136: ='Main Sheet'!B135 -> 0 | C136: ='Main Sheet'!C135 -> 0
A137: ='Main Sheet'!A136 -> 0 | B137: ='Main Sheet'!B136 -> 0 | C137: ='Main Sheet'!C136 -> 0
A138: ='Main Sheet'!A137 -> 0 | B138: ='Main Sheet'!B137 -> 0 | C138: ='Main Sheet'!C137 -> 0
A139: ='Main Sheet'!A138 -> 0 | B139: ='Main Sheet'!B138 -> 0 | C139: ='Main Sheet'!C138 -> 0
A140: ='Main Sheet'!A139 -> 0 | B140: ='Main Sheet'!B139 -> 0 | C140: ='Main Sheet'!C139 -> 0
A141: ='Main Sheet'!A140 -> 0 | B141: ='Main Sheet'!B140 -> 0 | C141: ='Main Sheet'!C140 -> 0
